Cogmind - Beta 14 @@@ ROGUE MODE // 2024.08.30 @ 20:15:28 Player: CatgirlLyra Result: Destroyed by G-67 Veteran with Plasma Rifle Performance ------------- Evolutions (4) 2000 Regions Visited (13) 2600 Robots Destroyed (224) 1120 Value Destroyed (11193) 11193 Prototype IDs (16) 320 Alien Tech Used (0) 0 Bonus (4423) 4423 TOTAL SCORE: 21656 Bonus ------- High Alert Combat Kills 2189 Follower Combat Kills 232 Entered Garrisons 800 Used RIF Installer 2000 Friendly Fire -798 Cogmind --------- Core Integrity 0/850 Matter 293/300 Energy 100/100 System Corruption 0% Temperature Cool (0) Movement Core (50) Location -6/Garrison Parts ------- > --- POWER (2) -------- (None) > --- PROPULSION (4) --- (None) > --- UTILITY (6) ------ (None) > --- WEAPON (3) ------- (None) > --- INVENTORY (5) ---- Light Angular Momentum Engine High-capacity Storage Unit Advanced Phase Shifter Gauss Rifle Remote Datajack Peak State ------------ > --- POWER ------------ Improved Deuterium Engine Neutrino Core > --- PROPULSION ------- Heavy Treads Improved Heavy Treads > --- UTILITY ---------- Improved Cooling System High-capacity Storage Unit Improved Transmission Jammer Advanced Phase Shifter Improved Light Armor Plating Relay Coupler [Specialist] > --- WEAPON ----------- Heavy Particle Gun Autogun Remote Datajack > --- INVENTORY -------- Improved Ion Engine Advanced Heat Sink Coolant Injector Damper Plating Graphene Brace Relay Coupler [NC] Relay Coupler [Sentry] Relay Coupler [Hunter] Relay Coupler [Heavy] Relay Coupler [Behemoth] Long-range Tractor Beam Gauss Rifle Rocket Launcher Rocket Launcher Plasma Cutter [Rating: 82] Favorites ----------- Power Improved Ion Engine Engine Improved Ion Engine Power Core Neutrino Core Reactor Antimatter Reactor Propulsion Light Treads Treads Light Treads Utility High-capacity Storage Unit Device Improved Heat Sink Storage High-capacity Storage Unit Processor Targeting Computer Hackware Relay Coupler [Grunt] Protection Light Armor Plating Weapon Enhanced Autogun Energy Gun Heavy Particle Gun Energy Cannon Heavy Plasma Cannon Ballistic Gun Enhanced Autogun Launcher Rocket Launcher Special Weapon Remote Datajack Build | -11 -10 -9 -9 -8 -8 -8 -8 -7 -7 -7 -7 -6 -6 ------- Run | Yrd Mat Mat Min Mat Gar Mat Gar Fac Was Fac Gar Fac Gar Slots Evolved 8 | . . 2 . 2 . . . 2 . . . 2 . Power 1 | . . . . . . . . . . . . 1 . Propulsion 2 | . . 1 . . . . . 1 . . . . . Utility 4 | . . 1 . 1 . . . 1 . . . 1 . Weapon 1 | . . . . 1 . . . . . . . . . Parts Attached 205 | 8 9 19 5 21 28 21 16 2 10 2 32 16 16 Power 18 | 1 2 1 1 1 1 . 2 . 2 . 1 2 4 Engine 14 | 1 2 1 1 1 1 . 2 . . . . 2 3 Core 2 | . . . . . . . . . . . 1 . 1 Reactor 2 | . . . . . . . . . 2 . . . . Propulsion 35 | 2 1 5 1 7 6 1 2 1 4 . 4 1 . Treads 35 | 2 1 5 1 7 6 1 2 1 4 . 4 1 . Leg . | . . . . . . . . . . . . . . Wheel . | . . . . . . . . . . . . . . Hover . | . . . . . . . . . . . . . . Flight . | . . . . . . . . . . . . . . Utility 58 | 2 4 6 3 5 5 9 3 1 2 2 5 7 4 Device 30 | 1 1 3 2 4 2 4 2 1 1 1 1 5 2 Storage 5 | 1 3 . . . . . . . . . . 1 . Processor 2 | . . . . . . . . . . 1 . . 1 Hackware 9 | . . . . . . 2 1 . 1 . 4 . 1 Protection 12 | . . 3 1 1 3 3 . . . . . 1 . Artifact . | . . . . . . . . . . . . . . Weapon 94 | 3 2 7 . 8 16 11 9 . 2 . 22 6 8 Energy Gun 26 | 2 2 6 . 3 6 1 2 . . . 2 1 1 Energy Cannon 11 | . . . . 2 5 . 2 . 1 . 1 . . Ballistic Gun 36 | 1 . 1 . 3 5 7 3 . . . 10 2 4 Ballistic Cannon . | . . . . . . . . . . . . . . Launcher 7 | . . . . . . . . . . . 4 1 2 Special Weapon 14 | . . . . . . 3 2 . 1 . 5 2 1 Impact Weapon . | . . . . . . . . . . . . . . Slashing Weapon . | . . . . . . . . . . . . . . Piercing Weapon . | . . . . . . . . . . . . . . Special Melee Weapon . | . . . . . . . . . . . . . . Unidentified Prototypes 5 | . 1 1 1 2 . . . . . . . . . Parts Lost 39 | . 1 5 4 . 7 2 3 . . . 3 . 14 Power 5 | . . . 1 . . . . . . . . . 4 Propulsion 7 | . . 3 1 . 1 . . . . . . . 2 Utility 15 | . 1 2 2 . 3 1 2 . . . 1 . 3 Weapon 12 | . . . . . 3 1 1 . . . 2 . 5 Highest Loss Streak 9 | . 1 2 4 . 3 2 2 . . . 1 . 9 To Critical Strikes 1 | . . . . . 1 . . . . . . . . Average Slot Usage (%) 91 | . 99 98 98 95 92 88 96 93 90 84 83 80 67 Engine 7 | . 14 11 11 9 9 9 9 7 3 . . 1 4 Reactor 1 | . . . . . . . . . 3 7 5 . . Treads 22 | . 28 33 32 26 23 17 24 30 22 15 14 13 10 Device 14 | . 13 12 11 18 11 10 16 16 15 15 15 18 10 Storage 9 | . 14 11 11 9 9 9 9 7 7 7 7 6 4 Hackware 5 | . . . . . . 11 8 7 14 15 14 11 9 Protection 3 | . . 8 9 4 11 3 1 . . . . 2 1 Energy Gun 11 | . 26 21 22 7 8 1 7 7 7 7 12 6 4 Ballistic Gun 11 | . 1 . . 16 17 23 18 15 1 . 7 12 7 Peak Build Rating 82 | 9 15 20 25 33 60 56 57 60 72 72 73 82 80 Average Rating 43 | 5 14 17 16 29 41 51 52 57 65 71 70 76 61 On Entrance 43 | . 9 15 17 15 33 51 55 52 57 72 72 72 82 Naked Turns 47 | . . . . . . . . . . . . . 47 Heaviest Build 91 | 14 55 63 59 66 91 84 75 67 75 75 76 83 80 Greatest Support 150 | 40 40 60 60 63 97 97 97 97 140 140 150 150 145 Greatest Overweight (x) 1 | . 1 1 . 1 1 . 1 . . . . . . Average Overweight (x) . | . . . . . . . . . . . . . . Largest Inventory Capacity 20 | 8 20 20 20 20 20 20 20 20 20 20 20 20 20 Average Capacity 19 | 6 18 20 20 20 20 20 20 20 20 20 20 20 17 Most Carried 20 | 7 15 20 19 20 20 20 20 18 20 20 20 20 20 Average Carried 18 | 4 11 17 17 19 19 19 19 18 19 20 19 19 15 Final Capacity 20 | 8 20 20 20 20 20 20 20 20 20 20 20 20 5 Final Carried 20 | 7 14 17 16 20 20 20 19 18 20 20 20 19 5 Class Distribution -------------------- 33% | Bothacker-Gunner 24% | Mutant 15% | Tank 9% | Scavenger-Tank 7% | Gunner 3% | Bothacker-Tank Dominant Class ---------------- Mutant | -10/Materials Mutant | -9/Materials Mutant | -9/Mines Tank | -8/Materials Scavenger-Tank | -8/Garrison Bothacker-Gunner | -8/Materials Bothacker-Gunner | -8/Garrison Bothacker-Gunner | -7/Factory Bothacker-Gunner | -7/Waste Bothacker-Gunner | -7/Factory Bothacker-Gunner | -7/Garrison Bothacker-Tank | -6/Factory Bothacker-Gunner | -6/Garrison Resources | -11 -10 -9 -9 -8 -8 -8 -8 -7 -7 -7 -7 -6 -6 ----------- Run | Yrd Mat Mat Min Mat Gar Mat Gar Fac Was Fac Gar Fac Gar Matter Collected 6270 | 307 280 177 33 625 799 1171 953 . 168 . 1067 412 278 Remotely 354 | . . . . 146 . 208 . . . . . . . Salvage Created 11984 | 174 536 1070 4 1493 914 1575 1484 . 1495 . 2285 530 424 Parts 495 | 8 29 56 . 75 45 91 61 . 23 . 73 22 12 Haulers Intercepted 10 | . 1 1 . 3 . 5 . . . . . . . Recyclers Shooed 8 | . 2 5 . 1 . . . . . . . . . Parts Field Recycled . | . . . . . . . . . . . . . . Retrieved Matter . | . . . . . . . . . . . . . . Parts Self-Destructed . | . . . . . . . . . . . . . . Prevented . | . . . . . . . . . . . . . . Kills | -11 -10 -9 -9 -8 -8 -8 -8 -7 -7 -7 -7 -6 -6 ------- Run | Yrd Mat Mat Min Mat Gar Mat Gar Fac Was Fac Gar Fac Gar Combat Hostiles Destroyed 188 | . 9 25 1 24 21 25 27 . 6 . 33 8 9 Melee 2 | . . . . . 2 . . . . . . . . Guns 161 | . 9 24 1 22 19 25 27 . . . 26 5 3 Cannons 10 | . . . . 2 . . . . 3 . 5 . . AOE 12 | . . 1 . . . . . . . . 2 3 6 Classes Destroyed 19 | 2 6 2 1 2 2 3 . . 1 . . . . Worker 5 | . 1 . . 2 . 1 . . . . . 1 . Builder 4 | . 2 1 . . . 1 . . . . . . . Tunneler 4 | 3 . . . . . 1 . . . . . . . Hauler 10 | . 1 1 . 3 . 5 . . . . . . . Recycler 4 | 1 . 1 . . . 1 . . . . . 1 . Operator 2 | . . . . . . 2 . . . . . . . Watcher 5 | . 2 . . 3 . . . . . . . . . Swarmer 18 | . 3 1 . . 2 3 . . . . 6 3 . Grunt 107 | . 6 17 . 15 11 12 12 . . . 23 4 7 Brawler 7 | . . . . 1 . 1 4 . . . 1 . . Duelist 8 | . . 1 . . . 1 2 . . . 1 3 . Sentry 24 | . . 6 . 7 1 4 4 . . . 1 1 . Demolisher 1 | . . . 1 . . . . . . . . . . Specialist 4 | . . . . . . 2 . . . . 2 . . Hunter 7 | . . . . 1 3 1 . . . . . . 2 Programmer 8 | . . . . . 3 . 5 . . . . . . Heavy 1 | . . . . . . 1 . . . . . . . Behemoth 1 | . . . . . 1 . . . . . . . . Compactor 6 | . . . . . . . . . 6 . . . . Best Kill Streak 11 | 4 6 11 1 6 5 8 5 . 2 . 7 9 6 Combat Bots Only 11 | . 3 11 1 6 5 7 5 . 2 . 7 4 6 Max Kills in Single Turn 3 | 1 3 2 1 2 2 2 1 . 1 . 2 3 3 Gunslinging 1 | . . 1 . . 1 1 . . . . . . . Exploded 3 | . . 1 . . . . . . . . 2 2 3 Melee 1 | . . . . . 1 . . . . . . . . Uniques/NPCs Destroyed . | . . . . . . . . . . . . . . Combat | -11 -10 -9 -9 -8 -8 -8 -8 -7 -7 -7 -7 -6 -6 -------- Run | Yrd Mat Mat Min Mat Gar Mat Gar Fac Was Fac Gar Fac Gar Hostile Shots Fired 1067 | . 39 148 11 85 189 116 96 . . . 165 27 191 Missed 317 | . 9 41 . 28 45 34 25 . . . 58 16 61 Damage Taken 12167 | . 401 1169 419 915 2343 1345 1170 . . . 1658 306 2441 Core 1588 | . 6 154 14 83 146 99 47 . . . 184 62 793 Absorbed by Shields 218 | . 10 188 . . . . . . . . . . 20 Regen/Repaired (Parts) 618 | . . 7 . 125 . 181 . . . . . 305 . Core Remaining (%) 71 | 100 97 . 58 . . . 31 . . . 73 . . Volleys Fired 685 | 9 24 54 6 75 85 98 102 . 40 . 154 11 27 Largest 3 | 2 2 2 2 3 3 3 3 . 2 . 3 3 3 Hottest 170 | 60 90 130 130 170 155 166 111 . 145 . 170 106 147 Shots Fired 1712 | 18 48 108 12 225 222 248 276 . 72 . 402 23 58 Gun 1532 | 18 48 108 12 187 213 229 267 . 32 . 354 18 46 Cannon 108 | . . . . 38 9 . 2 . 34 . 25 . . Launcher 13 | . . . . . . . . . . . 6 2 5 Special 59 | . . . . . . 19 7 . 6 . 17 3 7 Kinetic 866 | 9 . . . 131 145 216 192 . . . 134 12 27 Thermal 692 | 9 . 74 12 94 77 13 77 . 66 . 245 6 19 Explosive 13 | . . . . . . . . . . . 6 2 5 Electromagnetic 82 | . 48 34 . . . . . . . . . . . Robot Hit Streak 51 | 7 12 28 10 11 18 13 43 . 51 . 33 5 8 Robot Miss Streak 10 | 2 4 9 6 6 4 3 2 . 4 . 10 2 3 Penetration Max 1 | . . . . . . . . . . . . . 1 Secondary Targets 20 | . . 5 . 1 4 4 2 . . . 2 1 1 Max Gunslinging Chain 1 | . . 1 . 1 1 1 1 . . . 1 1 1 Shots Hit Robots 1172 | 12 37 99 12 144 140 166 193 . 55 . 265 13 36 Core Hits 583 | 5 26 114 18 60 53 62 68 . 11 . 113 22 31 Critical Kills 4 | . . . . 1 . . . . 3 . . . . Critical Parts Destroyed 4 | . . . . . 1 1 1 . . . . . 1 Critical Strikes 27 | . . . . 3 2 1 7 . 5 . 8 . 1 Burn 19 | . . . . 2 1 . 6 . 2 . 8 . . Meltdown 3 | . . . . . . . . . 3 . . . . Destroy 5 | . . . . 1 1 1 1 . . . . . 1 Melee Attacks . | . . . . . . . . . . . . . . Impact . | . . . . . . . . . . . . . . Slashing . | . . . . . . . . . . . . . . Piercing . | . . . . . . . . . . . . . . Sneak Attacks . | . . . . . . . . . . . . . . Combat Hostiles . | . . . . . . . . . . . . . . Follow-up Attacks . | . . . . . . . . . . . . . . Damage Inflicted 23221 | 167 888 1570 169 2685 2542 2918 3088 . 1513 . 5083 1184 1414 Guns 18330 | 167 743 1384 169 2001 2454 2830 3088 . 516 . 4230 211 537 Cannons 2177 | . . . . 637 27 . . . 997 . 516 . . Explosions 2421 | . 122 123 . . . . . . . . 337 967 872 Melee . | . . . . . . . . . . . . . . Ramming 293 | . 23 63 . 47 61 88 . . . . . 6 5 Kinetic 9316 | 78 . . . 1357 1591 2658 1848 . . . 1375 122 287 Thermal 10182 | 89 122 996 169 1281 890 172 1240 . 1513 . 3371 89 250 Explosive 2176 | . . . . . . . . . . . 337 967 872 Electromagnetic 1254 | . 743 511 . . . . . . . . . . . Impact . | . . . . . . . . . . . . . . Slashing . | . . . . . . . . . . . . . . Piercing . | . . . . . . . . . . . . . . Highest Corruption 34 | . . . . . 1 1 2 . 34 34 34 . . Average Corruption 16 | . . . . . 1 1 1 . 20 34 34 . . Corruption Purged . | . . . . . . . . . . . . . . Corruption Blocked . | . . . . . . . . . . . . . . Effects 169 | . . . . . 2 9 16 . 18 3 121 . . Message Errors 36 | . . . . . 1 2 5 . 3 . 25 . . Matter Fused 36 | . . . . . 1 3 1 . 3 2 26 . . Heat Flow Errors 13 | . . . . . . . 2 . 1 . 10 . . Energy Discharges 18 | . . . . . . . 3 . 2 1 12 . . Parts Rejected 4 | . . . . . . 1 . . 2 . 1 . . Parts Fused 1 | . . . . . . . . . . . 1 . . Data Loss (minor) 23 | . . . . . . 1 2 . 3 . 17 . . Data Loss (major) 11 | . . . . . . 2 . . 2 . 7 . . Misfires 6 | . . . . . . . 1 . . . 5 . . Alerts 1 | . . . . . . . 1 . . . . . . Weapon Failures 20 | . . . . . . . 1 . 2 . 17 . . Overload Shots . | . . . . . . . . . . . . . . Overflow Damage 2 | . . . . . . . . . . . 2 . . Projectiles 2 | . . . . . . . . . . . 2 . . Explosions . | . . . . . . . . . . . . . . Melee . | . . . . . . . . . . . . . . Knockbacks 1 | . . . . . . 1 . . . . . . . Impact 1 | . . . . . . 1 . . . . . . . Kinetic . | . . . . . . . . . . . . . . Secondary . | . . . . . . . . . . . . . . Self-Inflicted Damage 333 | . 125 63 . . . . . . . . . 145 . Shots 7 | . 3 2 . . . . . . . . . 2 . Rammed 50 | . 6 13 . 8 7 14 . . . . . 1 1 Targets Rammed 53 | . 6 13 . 8 9 15 . . . . . 1 1 Kicked . | . . . . . . . . . . . . . . Crushed 3 | . . . . . 2 1 . . . . . . . Highest Temperature 378 | . 168 355 179 192 315 378 325 . 187 . 272 . 169 Average Temperature 73 | . 71 73 88 51 99 77 69 . 67 . 71 . 48 Received Heat Transfer 4239 | . 96 470 . 468 813 513 351 . . . 711 54 763 Effects 5 | . . 1 . . . 1 3 . . . . . . Energy Bleed 1 | . . . . . . 1 . . . . . . . Interference 3 | . . . . . . . 3 . . . . . . Damage (minor) 1 | . . 1 . . . . . . . . . . . Siege Activations . | . . . . . . . . . . . . . . Robots Corrupted 1 | . 1 . . . . . . . . . . . . Combat Hostiles . | . . . . . . . . . . . . . . Parts Fried 5 | . 3 2 . . . . . . . . . . . Impact Corruptions . | . . . . . . . . . . . . . . Robots Melted 3 | . . . . . . . . . 3 . . . . Combat Hostiles 3 | . . . . . . . . . 3 . . . . Parts Melted 31 | . 1 . . 2 . . 5 . 7 . 13 . 3 Heat Transferred 19083 | 200 200 1315 215 2294 1739 370 2628 . 2734 . 6722 185 481 Parts Sabotaged . | . . . . . . . . . . . . . . Parts Stolen . | . . . . . . . . . . . . . . Parts Stripped . | . . . . . . . . . . . . . . Power Chain Reactions 6 | . 3 3 . . . . . . . . . . . Alert | -11 -10 -9 -9 -8 -8 -8 -8 -7 -7 -7 -7 -6 -6 ------- Run | Yrd Mat Mat Min Mat Gar Mat Gar Fac Was Fac Gar Fac Gar Peak Influence 1423 | 20 155 523 195 538 890 717 1423 746 264 184 1407 1157 889 Initial 758 | . 13 7 195 72 261 433 466 746 261 184 128 738 758 Average 523 | 6 55 134 193 352 561 473 1046 746 262 184 880 816 767 Maximum Alert Level 4 | . . 2 . 2 3 3 4 3 1 . 4 4 3 Low Security (%) 26 | 100 100 77 100 26 . . . . . 100 4 . . Level 1 13 | . . 11 . 23 13 26 . . 100 . 6 . . Level 2 28 | . . 11 . 49 68 67 21 . . . 18 . . Level 3 21 | . . . . . 17 5 29 100 . . 44 98 100 Level 4 9 | . . . . . . . 49 . . . 26 1 . Level 5 . | . . . . . . . . . . . . . . High Security . | . . . . . . . . . . . . . . Max Security . | . . . . . . . . . . . . . . Squads Dispatched 14 | . 1 4 . 2 . 4 . . . . . 3 . Investigation 6 | . 1 3 . . . 1 . . . . . 1 . Extermination . | . . . . . . . . . . . . . . Reinforcement 6 | . . 1 . 2 . 3 . . . . . . . Assault 2 | . . . . . . . . . . . . 2 . Garrison . | . . . . . . . . . . . . . . Intercept . | . . . . . . . . . . . . . . Searches Triggered . | . . . . . . . . . . . . . . Construction Impeded 1 | . . . . . . 1 . . . . . . . Haulers Reinforced . | . . . . . . . . . . . . . . Active Scanning Responses . | . . . . . . . . . . . . . . Cargo Convoy Interrupts . | . . . . . . . . . . . . . . Stealth | -11 -10 -9 -9 -8 -8 -8 -8 -7 -7 -7 -7 -6 -6 --------- Run | Yrd Mat Mat Min Mat Gar Mat Gar Fac Was Fac Gar Fac Gar Distress Signals 9 | . 1 6 . 2 . . . . . . . . . Communications Jammed . | . . . . . . . . . . . . . . Distress Signals . | . . . . . . . . . . . . . . Times Spotted 251 | . 12 42 2 39 22 36 26 . 5 . 38 12 17 Peak Tracking Total 10 | . 4 10 2 4 5 5 5 . 1 . 6 6 10 Tactical Retreats 7 | . . 1 . 2 2 1 . . . . . . 1 Traps | -11 -10 -9 -9 -8 -8 -8 -8 -7 -7 -7 -7 -6 -6 ------- Run | Yrd Mat Mat Min Mat Gar Mat Gar Fac Was Fac Gar Fac Gar Traps Triggered 8 | . 1 1 . . 1 . . 1 . . 3 . 1 Indirectly . | . . . . . . . . . . . . . . Trap Hack Attempts . | . . . . . . . . . . . . . . Triggered . | . . . . . . . . . . . . . . Disarmed . | . . . . . . . . . . . . . . Reprogrammed . | . . . . . . . . . . . . . . Reused . | . . . . . . . . . . . . . . Traps Extracted . | . . . . . . . . . . . . . . Installed . | . . . . . . . . . . . . . . Triggered . | . . . . . . . . . . . . . . Machines | -11 -10 -9 -9 -8 -8 -8 -8 -7 -7 -7 -7 -6 -6 ---------- Run | Yrd Mat Mat Min Mat Gar Mat Gar Fac Was Fac Gar Fac Gar Machines Disabled 33 | . 1 3 . . 1 . 7 . . . 7 14 . Max in Single Turn 4 | . 1 1 . . 1 . 2 . . . 1 4 . Garrison Relay 13 | . . . . . 1 . 7 . . . 5 . . Machines Repaired . | . . . . . . . . . . . . . . Machines Dismantled . | . . . . . . . . . . . . . . Machines Sabotaged . | . . . . . . . . . . . . . . Overloaded Fab Kills . | . . . . . . . . . . . . . . Hacking | -11 -10 -9 -9 -8 -8 -8 -8 -7 -7 -7 -7 -6 -6 --------- Run | Yrd Mat Mat Min Mat Gar Mat Gar Fac Was Fac Gar Fac Gar Machines Accessed 43 | . 4 6 . 12 2 7 4 1 . 1 3 3 . Terminals 32 | . 4 5 . 9 2 3 4 1 . . 3 1 . Fabricators . | . . . . . . . . . . . . . . Repair Stations 5 | . . 1 . 2 . 1 . . . . . 1 . Recycling Units 1 | . . . . . . 1 . . . . . . . Scanalyzers 1 | . . . . . . 1 . . . . . . . Garrison Access 4 | . . . . 1 . 1 . . . 1 . 1 . Total Hacks 103 | . 12 13 . 29 3 20 7 1 . 1 6 11 . Successful 53 | . 8 8 . 9 2 12 3 1 . 1 1 8 . Failed 50 | . 4 5 . 20 1 8 4 . . . 5 3 . Catastrophic 5 | . . 2 . 2 . . . . . . 1 . . Database Lockouts . | . . . . . . . . . . . . . . Manual 39 | . 9 7 . 15 . 4 . . . . . 4 . Terminals 78 | . 12 11 . 21 3 11 7 1 . . 6 6 . Fabricators . | . . . . . . . . . . . . . . Repair Stations 15 | . . 2 . 4 . 5 . . . . . 4 . Recycling Units 1 | . . . . . . 1 . . . . . . . Scanalyzers 2 | . . . . . . 2 . . . . . . . Garrison Access 7 | . . . . 4 . 1 . . . 1 . 1 . Terminal Hacks 28 | . 5 4 . 4 2 5 3 1 . . 1 3 . Part Schematic 2 | . . 1 . 1 . . . . . . . . . Robot Analysis 5 | . 2 1 . 1 . 1 . . . . . . . Prototype ID Bank 6 | . 1 1 . 1 . 2 . . . . . 1 . Open Door 1 | . . . . . . . 1 . . . . . . Open DSF 1 | . . . . . . . . 1 . . . . . Branch Access Points 1 | . . 1 . . . . . . . . . . . Emergency Access Points 1 | . . . . . 1 . . . . . . . . Terminal Index 2 | . 1 . . . . . . . . . . 1 . Locate Traps 1 | . 1 . . . . . . . . . . . . Hauler Manifests 1 | . . . . . . . . . . . . 1 . Zone Layout 3 | . . . . 1 . 2 . . . . . . . Garrison Registry 2 | . . . . . 1 . 1 . . . . . . Patrol Navigation 1 | . . . . . . . . . . . 1 . . Security Stations 1 | . . . . . . . 1 . . . . . . Fabricator Hacks . | . . . . . . . . . . . . . . Repair Station Hacks 10 | . . 2 . 2 . 3 . . . . . 3 . Scan Component 6 | . . 1 . 1 . 2 . . . . . 2 . Repair 4 | . . 1 . 1 . 1 . . . . . 1 . Recycling Unit Hacks 1 | . . . . . . 1 . . . . . . . Retrieve Matter 1 | . . . . . . 1 . . . . . . . Scanalyzer 1 | . . . . . . 1 . . . . . . . Insert Component 1 | . . . . . . 1 . . . . . . . Garrison Access Hacks 4 | . . . . 1 . 1 . . . 1 . 1 . Unlock Access 4 | . . . . 1 . 1 . . . 1 . 1 . Unauthorized Hacks 9 | . 3 2 . 2 . 1 . . . . . 1 . Terminals 9 | . 3 2 . 2 . 1 . . . . . 1 . Assimilate 1 | . 1 . . . . . . . . . . . . Botnet 8 | . 2 2 . 2 . 1 . . . . . 1 . Fabricators . | . . . . . . . . . . . . . . Repair Stations . | . . . . . . . . . . . . . . Recycling Units . | . . . . . . . . . . . . . . Scanalyzers . | . . . . . . . . . . . . . . Garrison Access . | . . . . . . . . . . . . . . Data Cores Recovered 1 | . . . . . . 1 . . . . . . . Used 1 | . . . . . . 1 . . . . . . . Hacking Detections 36 | . 4 6 . 11 2 5 3 . . . 3 2 . Full Trace Events 5 | . . 2 . . . 1 1 . . . . 1 . Feedback Events . | . . . . . . . . . . . . . . Feedback Blocked . | . . . . . . . . . . . . . . Robot Schematics Acquired . | . . . . . . . . . . . . . . Robots Built . | . . . . . . . . . . . . . . Authchips . | . . . . . . . . . . . . . . Time . | . . . . . . . . . . . . . . Total Robot Build Rating . | . . . . . . . . . . . . . . Part Schematics Acquired 1 | . . 1 . . . . . . . . . . . Parts Built . | . . . . . . . . . . . . . . Authchips . | . . . . . . . . . . . . . . Time . | . . . . . . . . . . . . . . Total Part Build Rating . | . . . . . . . . . . . . . . Parts Repaired 4 | . . 1 . 1 . 1 . . . . . 1 . Time 233 | . . 53 . 38 . 56 . . . . . 86 . Parts Recycled . | . . . . . . . . . . . . . . Recycled Matter . | . . . . . . . . . . . . . . Retrieved Matter 17 | . . . . . . 17 . . . . . . . Retrieved Components . | . . . . . . . . . . . . . . Parts Scanalyzed 1 | . . . . . . 1 . . . . . . . Part Schematics Acquired . | . . . . . . . . . . . . . . Parts Damaged . | . . . . . . . . . . . . . . Bothacking | -11 -10 -9 -9 -8 -8 -8 -8 -7 -7 -7 -7 -6 -6 ------------ Run | Yrd Mat Mat Min Mat Gar Mat Gar Fac Was Fac Gar Fac Gar Used RIF Installer 4 | . . . . . 1 . 1 . . . 1 . 1 Hotswap 1 | . . . . . . . 1 . . . . . . Zone Cloak 1 | . . . . . . . . . . . 1 . . Watcher Feeds 1 | . . . . . . . . . . . . . 1 Robots Hacked 24 | . . . . . . 8 . . 6 . 6 2 2 Non-combat 5 | . . . . . . 5 . . . . . . . Combat 19 | . . . . . . 3 . . 6 . 6 2 2 Robot Hacks Applied 27 | . . . . . . 10 . . 6 . 6 2 3 parse_system 4 | . . . . . . . . . . . 3 . 1 ignore_repairs 1 | . . . . . . 1 . . . . . . . map_earth 1 | . . . . . . 1 . . . . . . . drop_inventory 1 | . . . . . . 1 . . . . . . . find_recycling 1 | . . . . . . 1 . . . . . . . purge_threat 1 | . . . . . . 1 . . . . . . . find_terminals 1 | . . . . . . 1 . . . . . . . block_reporting 1 | . . . . . . 1 . . . . . . . ignore_targets 6 | . . . . . . . . . 6 . . . . overwrite_iff 5 | . . . . . . 1 . . . . 2 1 1 formatsys_high 5 | . . . . . . 2 . . . . 1 1 1 Relay Couplers Released 53 | . . . . . 4 . 30 . . . 19 . . Machine Destruction 53 | . . . . . 4 . 30 . . . 19 . . Attached 8 | . . . . . . 2 . . 1 . 4 . 1 Fabnet Peak Effective % . | . . . . . . . . . . . . . . Robots Rewired 9 | . . . . . . . 3 . . . 6 . . Allies Hacked 3 | . . . . . . . 3 . . . . . . Hacks Repelled . | . . . . . . . . . . . . . . Allies | -11 -10 -9 -9 -8 -8 -8 -8 -7 -7 -7 -7 -6 -6 -------- Run | Yrd Mat Mat Min Mat Gar Mat Gar Fac Was Fac Gar Fac Gar Total Allies 21 | . 1 . . . . 3 3 . 1 . 9 2 2 Largest Group 4 | . 1 1 . . . 2 3 . 1 . 3 4 1 Highest-Rated Group 118 | . 10 10 . . . 32 87 . 31 . 90 118 41 Highest-Rated Ally 43 | . 10 10 . . . 16 31 . 31 . 43 30 41 Total Orders . | . . . . . . . . . . . . . . Ally Attacks 156 | . . . . . . 22 16 . 71 . 31 10 6 Total Damage 2769 | . . . . . . 204 323 . 1108 . 618 310 206 Kills 8 | . . . . . . 2 1 . . . 3 2 . Allies Corrupted 2 | . . . . . . . 1 . 1 . . . . Allies Melted . | . . . . . . . . . . . . . . Intel | -11 -10 -9 -9 -8 -8 -8 -8 -7 -7 -7 -7 -6 -6 ------- Run | Yrd Mat Mat Min Mat Gar Mat Gar Fac Was Fac Gar Fac Gar Robot Analysis Total 5 | . 2 1 . 1 . 1 . . . . . . . Derelict Logs Recovered . | . . . . . . . . . . . . . . Drone Launches . | . . . . . . . . . . . . . . Drone Recoveries . | . . . . . . . . . . . . . . Exploration | -11 -10 -9 -9 -8 -8 -8 -8 -7 -7 -7 -7 -6 -6 ------------- Run | Yrd Mat Mat Min Mat Gar Mat Gar Fac Was Fac Gar Fac Gar Turns Passed 11324 | 114 1161 1143 263 1780 1261 1130 1180 102 385 52 1984 477 292 Spaces Moved 4834 | 45 468 412 149 731 454 468 526 60 154 31 929 260 147 Core 61 | 3 . . . . . . . . . . . . 58 Treads 4773 | 42 468 412 149 731 454 468 526 60 154 31 929 260 89 Legs . | . . . . . . . . . . . . . . Wheels . | . . . . . . . . . . . . . . Hover . | . . . . . . . . . . . . . . Flight . | . . . . . . . . . . . . . . Fastest Speed 50 | 50 160 160 160 160 163 160 165 167 160 160 160 160 50 Average Speed 181 | 152 221 213 160 197 209 164 168 167 163 160 160 160 116 Slowest Speed 250 | 160 240 240 160 246 246 165 250 167 167 160 160 160 160 Overloaded Moves . | . . . . . . . . . . . . . . Propulsion Burnouts . | . . . . . . . . . . . . . . Robots Hopped . | . . . . . . . . . . . . . . Cave-ins Triggered . | . . . . . . . . . . . . . . Exploration Rate (%) 40 | 3 75 45 49 62 53 45 59 2 73 2 70 9 21 Regions Visited 13 Branch Regions 1 Pre-discovered Areas . | . . . . . . . . . . . . . . Known Exits Taken 5 | . . 1 . 1 . 1 . . . 1 . 1 . Unknown Exits Taken 3 | 1 1 . 1 . . . . . . . . . . Scrap Searched . | . . . . . . . . . . . . . . Spaces Dug . | . . . . . . . . . . . . . . Terrain Destroyed 150 | . 9 11 . 13 . 2 . . 3 . 30 54 28 Melee . | . . . . . . . . . . . . . . Projectile 20 | . . . . 13 . 2 . . 3 . 1 . 1 AOE 130 | . 9 11 . . . . . . . . 29 54 27 Terrain Rammed . | . . . . . . . . . . . . . . Walls Destroyed . | . . . . . . . . . . . . . . Machines Disabled . | . . . . . . . . . . . . . . Actions | -11 -10 -9 -9 -8 -8 -8 -8 -7 -7 -7 -7 -6 -6 --------- Run | Yrd Mat Mat Min Mat Gar Mat Gar Fac Was Fac Gar Fac Gar Total 6279 | 69 539 552 161 925 638 725 682 63 219 34 1150 302 220 Wait 253 | . 10 38 . 44 18 93 23 . . . 17 5 5 Move 4823 | 44 467 412 148 730 453 467 525 60 153 30 928 259 147 Hop . | . . . . . . . . . . . . . . Pick Up 111 | 8 11 9 2 19 20 14 6 . 4 . 8 3 7 Fast Attach 64 | 6 4 8 . 10 6 3 3 1 5 2 6 7 3 Attach 41 | 1 . 6 3 4 5 4 4 1 1 . 2 3 7 Detach 5 | . . 1 . 1 2 . . . . . . . 1 Swap 100 | 1 5 5 2 7 17 14 9 . 4 . 24 6 6 Drop 125 | . 12 7 . 27 23 17 6 1 12 2 8 7 3 Fire 685 | 9 24 54 6 75 85 98 102 . 40 . 154 11 27 Melee . | . . . . . . . . . . . . . . Ram . | . . . . . . . . . . . . . . Kick . | . . . . . . . . . . . . . . Crush 52 | . 6 12 . 8 9 15 . . . . . 1 1 Escape Stasis 13 | . . . . . . . . . . . . . 13 Rewire 7 | . . . . . . . 4 . . . 3 . . Trap . | . . . . . . . . . . . . . . Miscellaneous . | . . . . . . . . . . . . . . Route ------- -11/Scrapyard -10/Materials (discovered 3 exits: *Mat x2 / [*Min]) -9/Materials (discovered 3 exits: *Mat / *Min x2) -9/Mines (discovered 2 exits: *Mat x2) -8/Materials (discovered 2 exits: *Fac / Gar) -8/Garrison (discovered 4 exits: *Mat x4) -8/Materials (discovered 2 exits: *Fac / Gar) -8/Garrison (discovered 3 exits: *Fac x3) -7/Factory -7/Waste -7/Factory -7/Garrison (discovered 3 exits: *Fac x3) -6/Factory -6/Garrison History --------- Turn | Location | Event 6 | -11/Scrapyard | Discovered new exit (range 14) 115 | -11/Scrapyard | Entered Materials 322 | -10/Materials | Build established: Mutant 541 | -10/Materials | Discovered new exit (range 7) 721 | -10/Materials | Discovered new exit (range 16) 980 | -10/Materials | Discovered new exit (range 4) 1276 | -10/Materials | Entered another Materials area 1276 | -9/Materials | Accompanied by 1 ally 1276 | -9/Materials | Evolved 2 slots: Propulsion x1, Utility x1 1350 | -9/Materials | Repaired Corrupted Imp. Heat Sink? 1634 | -9/Materials | Identified exit to Mines 2128 | -9/Materials | Discovered new exit (range 15) 2317 | -9/Materials | Destroyed 11 combat bots 2419 | -9/Materials | Entered Mines 2509 | -9/Mines | Found a damaged Exp. Sensor Array with a note attached 2512 | -9/Mines | Found Prototype Device 2513 | -9/Mines | Identified Exp. Sensor Array 2579 | -9/Mines | Discovered new exit (range 5) 2620 | -9/Mines | Discovered new exit (range 11) 2624 | -9/Mines | Received a Rocket Launcher from a helpful Derelict 2640 | -9/Mines | Assembled infested the area 2682 | -9/Mines | Entered Materials 2682 | -8/Materials | Evolved 2 slots: Utility x1, Weapon x1 2691 | -8/Materials | Lost 4 parts (1p1n2u) 2967 | -8/Materials | Build established: Gunner 3596 | -8/Materials | Discovered new exit (range 4) 3837 | -8/Materials | Build established: Tank 3842 | -8/Materials | Repaired Arm. Treads 4422 | -8/Materials | Identified exit to Garrison 4462 | -8/Materials | Entered Garrison 4504 | -8/Garrison | Discovered new exit (range 56) 4504 | -8/Garrison | Discovered new exit (range 69) 4504 | -8/Garrison | Discovered new exit (range 44) 4504 | -8/Garrison | Discovered new exit (range 63) 4590 | -8/Garrison | Triggered checkpoint 4744 | -8/Garrison | Triggered checkpoint 4868 | -8/Garrison | Installed Relay Interface Framework 4939 | -8/Garrison | Build established: Scavenger-Tank 5039 | -8/Garrison | Triggered checkpoint 5058 | -8/Garrison | Garrison Relay disabled 5126 | -8/Garrison | Spotted B-75 Beast 5167 | -8/Garrison | Destroyed B-75 Beast 5195 | -8/Garrison | Lost 3 parts (1n2u) 5423 | -8/Garrison | Triggered checkpoint 5723 | -8/Garrison | Entered Materials 6091 | -8/Materials | Build established: Bothacker-Gunner 6404 | -8/Materials | Repaired Arm. Medium Treads 6646 | -8/Materials | Core integrity fell below 50% 6691 | -8/Materials | Destroyed 7 combat bots 6729 | -8/Materials | Discovered new exit (range 5) 6835 | -8/Materials | Identified exit to Garrison 6853 | -8/Materials | Entered Garrison 6885 | -8/Garrison | Triggered checkpoint 6914 | -8/Garrison | Garrison Relay disabled 6958 | -8/Garrison | Build established: Scavenger-Tank 7030 | -8/Garrison | Learned Factory security intel 7141 | -8/Garrison | Garrison Relay disabled 7141 | -8/Garrison | Garrison Relay disabled 7144 | -8/Garrison | Garrison Relay disabled 7144 | -8/Garrison | Garrison Relay disabled 7235 | -8/Garrison | Triggered checkpoint 7295 | -8/Garrison | Triggered checkpoint 7334 | -8/Garrison | Discovered new exit (range 15) 7379 | -8/Garrison | Triggered checkpoint 7448 | -8/Garrison | Garrison Relay disabled 7475 | -8/Garrison | Build established: Bothacker-Gunner 7559 | -8/Garrison | Garrison Relay disabled 7653 | -8/Garrison | Triggered checkpoint 7849 | -8/Garrison | Triggered checkpoint 7962 | -8/Garrison | Discovered new exit (range 61) 7962 | -8/Garrison | Discovered new exit (range 13) 7962 | -8/Garrison | Discovered new exit (range 68) 8008 | -8/Garrison | Expanded RIF knowledge: Hotswap 8033 | -8/Garrison | Entered Factory 8033 | -7/Factory | Evolved 2 slots: Propulsion x1, Utility x1 8038 | -7/Factory | Identified exit to DSF 8135 | -7/Factory | Sucked down chute 8135 | -7/Factory | Entered Waste 8136 | -7/Waste | Met a frightened Derelict 8150 | -7/Waste | EMP discharged 8150 | -7/Waste | System corruption reached 10% 8152 | -7/Waste | Spotted C-40 Crusher 8156 | -7/Waste | Spotted C-40 Crusher 8164 | -7/Waste | Spotted C-40 Crusher 8181 | -7/Waste | Spotted C-40 Crusher 8182 | -7/Waste | Spotted C-40 Crusher 8190 | -7/Waste | Destroyed C-40 Crusher 8250 | -7/Waste | EMP discharged 8278 | -7/Waste | Spotted C-40 Crusher 8292 | -7/Waste | Destroyed C-40 Crusher 8318 | -7/Waste | Found Damper Plating 8342 | -7/Waste | Destroyed C-40 Crusher 8348 | -7/Waste | Destroyed C-40 Crusher 8350 | -7/Waste | EMP discharged 8369 | -7/Waste | Destroyed C-40 Crusher 8399 | -7/Waste | Destroyed C-40 Crusher 8450 | -7/Waste | EMP discharged 8450 | -7/Waste | System corruption reached 30% 8499 | -7/Waste | Discovered new exit (range 12) 8520 | -7/Waste | Entered Factory 8563 | -7/Factory | Identified exit to Garrison 8572 | -7/Factory | Entered Garrison 8628 | -7/Garrison | Triggered checkpoint 8659 | -7/Garrison | Garrison Relay disabled 8769 | -7/Garrison | Triggered checkpoint 8790 | -7/Garrison | Triggered checkpoint 8804 | -7/Garrison | Destroyed 7 combat bots 8990 | -7/Garrison | Garrison Relay disabled 9026 | -7/Garrison | Triggered checkpoint 9066 | -7/Garrison | Triggered checkpoint 9128 | -7/Garrison | Triggered checkpoint 9318 | -7/Garrison | Triggered checkpoint 9351 | -7/Garrison | Discovered new exit (range 15) 9446 | -7/Garrison | Triggered checkpoint 9552 | -7/Garrison | Triggered checkpoint 9564 | -7/Garrison | Garrison Relay disabled 9604 | -7/Garrison | Discovered new exit (range 13) 9933 | -7/Garrison | Discovered new exit (range 10) 9966 | -7/Garrison | Triggered checkpoint 10027 | -7/Garrison | Garrison Relay disabled 10036 | -7/Garrison | Triggered checkpoint 10176 | -7/Garrison | Triggered checkpoint 10241 | -7/Garrison | Garrison Relay disabled 10486 | -7/Garrison | Expanded RIF knowledge: Zone Cloak 10556 | -7/Garrison | Entered Factory 10556 | -6/Factory | Accompanied by 3 allies 10556 | -6/Factory | Evolved 2 slots: Power x1, Utility x1 10906 | -6/Factory | First assault squad dispatched 10985 | -6/Factory | Murdered 3 allies 10987 | -6/Factory | Repaired Broken Imp. Heavy Treads? 11027 | -6/Factory | Identified exit to Garrison 11033 | -6/Factory | Entered Garrison 11051 | -6/Garrison | Expanded RIF knowledge: Watcher Feeds 11152 | -6/Garrison | Lost 5 parts (1p2u2w) 11191 | -6/Garrison | Triggered checkpoint 11278 | -6/Garrison | Released all parts (7) 11283 | -6/Garrison | Core integrity fell below 50% 11305 | -6/Garrison | Core integrity fell below 20% 11308 | -6/Garrison | Lost 9 parts (3p2n1u3w) 11325 | -6/Garrison | Destroyed by G-67 Veteran with Plasma Rifle Last Messages --------------- 11293_ Acquired 55 matter. 11306_ Acquired 31 matter. 11310_ Triggered Stasis Trap. 11310_ A bubble of rippling energy engulfs the area. 11310_ Field strength at 94. 11310_ Field strength at 88. 11311_ Field strength at 82. 11312_ Field strength at 76. 11313_ Field strength at 70. 11314_ Field strength at 64. 11315_ Field strength at 58. 11316_ Field strength at 52. 11317_ Field strength at 46. 11318_ Field strength at 40. 11319_ Field strength at 29. 11320_ Field strength at 23. 11321_ Field strength at 7. 11322_ Field strength at 1. 11322_ Stasis field depleted. 11324_ Critical hit (Burn: +37). Map ----- +----------------------------------------------------+ | ??????????????????????????????????####???????????? | | ????????????????????????????????### #???????????? | | ????????????????????????????????#"# #???????????? | | ????????????????????????????????#" #???????????? | | ????????????????????????????????#" #???????????? | | ?????????????????????????????????" #???????????? | | ??????????????????????????????????# #???????????? | | ??????????????????????????????????# #???????????? | | ??????????????????????????????????# #???????????? | | ??????????????????????????????????# #???????????? | | ????????????????????????????????### #???????????? | | ??????????????????????????###???# #???????????? | | ??????????????????????????# ???# #???????????? | | ??????????????????????????# #???# ###?????????? | | ??????????????????????????# ####### ##????????? | | ????????????????????????### = ########## | | ????????????????????????# [=%[ % % | | ????????????????????????# != [ !!%! | | ????????????????????????# = = !=%[! | | ????????????????????????# gg ##!! # ######### | | ????????????????????????# ##### # ! | #??????? | | ????????????????????????# #???###[!######??????? | | ????????????????????????# ^ ####### #???????????? | | ????????????????????????# # #???????????? | | ????????????????????????# ####### #???????????? | | ????????????????????????#@ #?????# #???????????? | | ????????????????????????# #?????# #???????????? | | ???????????????????????[% ####### #???????????? | | ?????????????????????? ! # #???????????? | | ????????????????????? # #???????????? | | ??????????????????? ## ##########???????????? | | ??????????????????# ?# #????????????????????? | | ????????????????? ?? ????????????????????? | | ???????????????? ?? ????????????????????? | | ??????????????? ???g ???????????????????? | | ??????????????? ?? ???????????????????? | | ??????????????? ## ???## ##???????????????????? | | ????????????????????????# #????????????????????? | | ???????????????????????? ????????????????????? | | ????????????????????????? ????????????????????? | | ????????????????????????? ?????????????????????? | | ?????????????????????????????????????????????????? | | ?????????????????????????????????????????????????? | | ?????????????????????????????????????????????????? | | ?????????????????????????????????????????????????? | | ?????????????????????????????????????????????????? | | ?????????????????????????????????????????????????? | | ?????????????????????????????????????????????????? | | ?????????????????????????????????????????????????? | | ?????????????????????????????????????????????????? | +----------------------------------------------------+ Best States ------------- Heat Dissipation 64 Coolant Potential 65 Energy Generation 30 Energy Capacity 505 Matter Stores 300 Matter Capacity 300 Sight Range 16 Robot Scan Range 15 Terrain Scan Range 20 Terrain Scan Density 10 Jamming Range 14 Armor Coverage 600 Phase Shifting 15 Evasion (%) 55 Targeting Accuracy 5 Recoil Reduction 4 Offensive Hacking 14 Relay Coupler Types 2 Relay Coupler Value 42 Item Schematics ----------------- Huge Storage Unit | -9/Materials | Hacked Robot Schematics ------------------ None Fabricated ------------ Nothing Alien Tech Used ----------------- None Achievements -------------- Gun Specialist Challenges ------------ None Game ------ Seed AlertPointBlade Manual? 0 Play Time 02:08:30 Cumulative 83.3 hours Start 2024.08.30 @ 16:06:08 End 2024.08.30 @ 20:15:28 Sessions 1 Manual Loads 0 Difficulty Rogue Special Mode None Game No. 42 Rogue 42 Adventurer 0 Explorer 0 Win Type - Total 3 Types 1/0/0/2/0/0/0/0/0 Lore% 46 Gallery% 60 Achievement% 53 Wizard Run 0 Options --------- Layout 0 ASCII 0 Keyboard 0 Movement Numpad Keybinds 0 Fullscreen 1 Font 18/X11 Map View 76x50 Zoom Use 0% Tactical HUD 1 Map Filters NONE Filters NONE Steam 1 RUN: bafdcbca-7f4e-4d6d-a139-d1605e598e3c